fUSD/lending_fUSD_20241125
["ID","MTS","AMOUNT","RATE_DAILY","PERIOD"]
[343291164,1732546252102,-5000.0,0.000408,120]
[343291165,1732546252111,-168.74,0.00040875,120]
[343291166,1732546252120,-162.01850204,0.00040973,5]
[343291167,1732546252129,-500.0,0.00041,120]
[343291168,1732546252140,-1996.46,0.00041,120]
[343291169,1732546252149,-289.59451883,0.00041,120]
[343291170,1732546252158,-503.85158743,0.00041,120]
[343291171,1732546252167,-6660.44018775,0.00041,4]
[343291172,1732546252177,-500.0,0.00041,2]
[343291173,1732546252186,-2232.0,0.00041,117]
[343291174,1732546252195,-1781.940488,0.00041,14]
[343291175,1732546252204,-164.0,0.00041,120]
[343291176,1732546252214,-16865.76799348,0.00041095,30]
[343291177,1732546252223,-151.0,0.00041095,14]
[343291178,1732546252233,-1000.0,0.00041095,120]
[343291179,1732546252243,-151.0,0.00041095,14]
[343291180,1732546252252,-151.0,0.00041095,14]
[343291181,1732546252262,-337.706605,0.00041095,14]
[343291182,1732546252272,-337.706605,0.00041095,14]
[343291183,1732546252281,-841.566412,0.00041095,14]
[343291184,1732546252291,-841.566412,0.00041095,14]
[343291185,1732546252300,-865.079839,0.00041095,14]
[343291186,1732546252312,-865.079839,0.00041095,14]
[343291187,1732546252322,-273.32663,0.00041095,14]
[343291188,1732546252331,-273.32663,0.00041095,14]
[343291189,1732546252340,-167.158696,0.00041095,14]
[343291190,1732546252351,-744.32,0.00041095,120]
[343291191,1732546252360,-167.158696,0.00041095,14]
[343291192,1732546252370,-151.0,0.00041095,14]
[343291193,1732546252379,-151.0,0.00041095,14]
[343291194,1732546252389,-305.78,0.00041096,2]
[343291195,1732546252399,-248.0,0.00041096,2]
[343291196,1732546252408,-244.79714875,0.00041096,2]
[343291197,1732546252418,-151.0,0.00041096,14]
[343291198,1732546252427,-150.55,0.00041096,2]
[343291199,1732546252436,-602.00107993,0.00041096,31]
[343291200,1732546252446,-500.0,0.00041165,120]
[343291201,1732546252456,-828.05,0.00041195,120]
[343291202,1732546252469,-417.91306,0.000413,14]
[343291203,1732546252479,-417.91306,0.000413,14]
[343291204,1732546252489,-1000.0,0.000413,30]
[343291205,1732546252499,-925.0,0.000413,30]
[343291206,1732546252509,-364.0,0.000413,30]
[343291207,1732546252519,-1000.0,0.0004137,2]
[343291208,1732546252528,-161.72022615,0.00041392,28]
[343291209,1732546252538,-554.04837378,0.00041423,30]
[343291210,1732546252547,-548.86184295,0.00041468,3]
[343291211,1732546252561,-1781.71208439,0.00041473,15]
[343291212,1732546252570,-1600.0,0.0004148,2]
[343291213,1732546252580,-2000.0,0.0004148,2]
[343291214,1732546252590,-744.32,0.00041506,120]
[343291215,1732546252599,-150.0,0.00041795,30]
[343291216,1732546252608,-666.29444735,0.00041898,120]
[343291217,1732546252617,-666.29444733,0.00041898,120]
[343291218,1732546252627,-626.21240286,0.000419,120]
[343291219,1732546252636,-666.29444733,0.000419,120]
[343291220,1732546252645,-3500.0,0.000419,15]
[343291221,1732546252655,-783.44,0.00041914,2]
[343291222,1732546252664,-744.32,0.00041917,120]
[343291223,1732546252674,-1503.78887816,0.00041999,120]
[343291224,1732546252683,-100000.0,0.00042,2]
[343291225,1732546252693,-5434.0,0.00042,2]
[343291226,1732546252702,-10000.0,0.00042,7]
[343291227,1732546252711,-1240.6,0.00042,30]
[343291228,1732546252721,-731.41275644,0.00042,120]
[343291229,1732546252730,-326166.14272494,0.00042,30]
[343291230,1732546252740,-151.0,0.00042,120]
[343291231,1732546252749,-151.0,0.00042,14]
[343291232,1732546252757,-151.0,0.00042,14]
[343291233,1732546252767,-151.0,0.00042,14]
[343291234,1732546252778,-151.0,0.00042,14]
[343291235,1732546252789,-417.91306,0.00042,14]
[343291236,1732546252798,-417.91306,0.00042,14]
[343291237,1732546252814,-417.91306,0.00042,14]
[343291238,1732546252823,-417.91306,0.00042,14]
[343291239,1732546252833,-154.485645,0.00042,14]
[343291240,1732546252842,-154.485645,0.00042,14]
[343291241,1732546252852,-154.485645,0.00042,14]
[343291242,1732546252861,-154.485645,0.00042,14]
[343291243,1732546252871,-151.0,0.00042,14]
[343291244,1732546252881,-222.937475,0.00042,14]
[343291245,1732546252890,-337.706605,0.00042,14]
[343291246,1732546252899,-337.706605,0.00042,14]
[343291247,1732546252908,-337.706605,0.00042,14]
[343291248,1732546252917,-337.706605,0.00042,14]
[343291249,1732546252926,-841.566412,0.00042,14]
[343291250,1732546252935,-841.566412,0.00042,14]
[343291251,1732546252946,-841.566412,0.00042,14]
[343291252,1732546252955,-841.566412,0.00042,14]
[343291253,1732546252965,-865.079839,0.00042,14]
[343291254,1732546252974,-865.079839,0.00042,14]
[343291255,1732546252983,-865.079839,0.00042,14]
[343291256,1732546252993,-865.079839,0.00042,14]
[343291257,1732546253002,-1781.940488,0.00042,14]
[343291258,1732546253011,-1781.940488,0.00042,14]
[343291259,1732546253020,-273.32663,0.00042,14]
[343291260,1732546253030,-273.32663,0.00042,14]
[343291261,1732546253040,-273.32663,0.00042,14]
[343291262,1732546253050,-273.32663,0.00042,14]
[343291263,1732546253060,-167.158696,0.00042,14]
[343291264,1732546253070,-167.158696,0.00042,14]
[343291265,1732546253079,-167.158696,0.00042,14]
[343291266,1732546253089,-167.158696,0.00042,14]
[343291267,1732546253099,-151.0,0.00042,14]
[343291268,1732546253107,-151.0,0.00042,14]
[343291269,1732546253116,-151.0,0.00042055,120]
[343291270,1732546253126,-156.86357056,0.00042125,16]
[343291271,1732546253135,-565.0,0.00042167,2]
[343291272,1732546253144,-1389.069,0.00042167,2]
[343291273,1732546253154,-194.706,0.00042167,2]
[343291274,1732546253163,-629.0,0.00042167,2]
[343291275,1732546253173,-1997.0,0.00042167,2]
[343291276,1732546253182,-1930.0,0.00042167,2]
[343291277,1732546253192,-561.0,0.00042167,2]
[343291278,1732546253202,-1262.0,0.00042167,2]
[343291279,1732546253212,-3753.0,0.00042167,2]
[343291280,1732546253221,-816.0,0.00042167,2]
[343291281,1732546253230,-980.0,0.00042167,2]
[343291282,1732546253240,-3519.0,0.00042167,2]
[343291283,1732546253249,-5949.0,0.00042167,2]
[343291284,1732546253259,-1163.0,0.00042167,2]
[343291285,1732546253268,-13677.0,0.00042167,2]
[343291286,1732546253278,-166.488,0.00042167,2]
[343291287,1732546253289,-152.958,0.00042167,2]
[343291288,1732546253299,-150.0,0.00042167,2]
[343291289,1732546253308,-1095.0,0.00042167,2]
[343291290,1732546253318,-2000.0,0.00042293,120]
[343291291,1732546253329,-744.32,0.00042328,120]
[343291292,1732546253338,-154.02,0.00042337,120]
[343291293,1732546253348,-1500.0,0.000424,15]
[343291294,1732546253357,-150.55,0.00042676,2]
[343291295,1732546253367,-744.32,0.00042739,120]
[343291296,1732546253377,-1781.71208439,0.00042779,15]
[343291297,1732546253387,-500.06,0.00042789,2]
[343291298,1732546253396,-1186.857545,0.000428,30]
[343291299,1732546253406,-4621.740936,0.000428,30]
[343291300,1732546253415,-82692.1400887,0.00042885,7]
[343291301,1732546253424,-1517.37007011,0.00042885,7]
[343291302,1732546253433,-273.32663,0.00042885,14]
[343291303,1732546253442,-273.326637,0.00042885,14]
[343291304,1732546253452,-167.158696,0.00042885,14]
[343291305,1732546253461,-167.158692,0.00042885,14]
[343291306,1732546253469,-2186.16445,0.00042956,2]
[343291307,1732546253478,-1600.0,0.0004296,2]
[343291308,1732546253488,-2000.0,0.0004296,2]
[343291309,1732546253497,-183.0,0.00042986,120]
[343291310,1732546253506,-5000.0,0.00042987,14]
[343291311,1732546253515,-100000.0,0.00043,3]
[343291312,1732546253524,-10207.0,0.00043,3]
[343291313,1732546253533,-550.0,0.00043,2]
[343291314,1732546253543,-214.0,0.00043,7]
[343291315,1732546253554,-40134.05949917,0.00043,120]
[343291316,1732546253571,-3131.44604124,0.00043,2]
[343291317,1732546253580,-35824.69975657,0.00043,120]
[343291318,1732546253597,-11269.98220146,0.00043,120]
[343291319,1732546253620,-200.0,0.00042167,2]
[343291320,1732546253630,-767.96,0.00043,120]
[343291321,1732546253646,-2451.5,0.00043,120]
[343291322,1732546253700,-34900.0,0.00043,120]
[343291323,1732546253715,-5574.12335,0.00043,120]
[343291324,1732546254153,-68.63915574,0.00043,120]
[343291325,1732546254171,-13886.79987328,0.00043,120]
[343291326,1732546254182,-10467.3033,0.00043,120]
[343291327,1732546254193,-1204.24666152,0.00043,120]
[343291328,1732546254209,-46455.5575954,0.00043,120]
[343291329,1732546254221,-5938.63757158,0.00043,120]
[343291330,1732546254230,-151.0,0.00043,14]
[343291331,1732546254240,-151.0,0.00043,14]
[343291332,1732546254250,-417.91306,0.00043,14]
[343291333,1732546254261,-417.913054,0.00043,14]
[343291334,1732546254270,-4950.34855743,0.00043,27]
[343291335,1732546254282,-4912.25869495,0.00043,27]
[343291336,1732546254292,-154.485645,0.00043,14]
[343291337,1732546254301,-154.485645,0.00043,14]
[343291338,1732546254311,-154.485645,0.00043,14]
[343291339,1732546254320,-154.485644,0.00043,14]
[343291340,1732546254330,-337.706605,0.00043,14]
[343291341,1732546254339,-337.706597,0.00043,14]
[343291342,1732546254349,-841.566412,0.00043,14]
[343291343,1732546254358,-841.566402,0.00043,14]
[343291344,1732546254368,-865.079839,0.00043,14]
[343291345,1732546254377,-215.80910279,0.00043,14]
[343291346,1732546254388,-649.27073521,0.00043,14]
[343291347,1732546254398,-1781.940487,0.00043,14]
[343291348,1732546254407,-548.86184295,0.00043037,10]
[343291349,1732546254416,-500.0,0.00043053,120]
[343291350,1732546254426,-964.2,0.00043054,2]
[343291351,1732546254435,-501.782,0.0004312,30]
[343291352,1732546254445,-744.32,0.0004315,120]
[343291353,1732546254454,-156.13,0.00043191,2]
[343291354,1732546254464,-161.72022615,0.00043211,28]
[343291355,1732546254473,-449.943757,0.00043342,120]
[343291356,1732546254484,-200.0,0.00043342,120]
[343291357,1732546254494,-1034.29,0.00043403,30]
[343291358,1732546254503,-744.32,0.00043561,120]
[343291359,1732546254512,-1333.0,0.00043562,120]
[343291360,1732546254522,-1839.76112508,0.00043618,120]
[343291361,1732546254533,-160.23887492,0.00043618,120]
[343291362,1732546254543,-1000.0,0.00043767,2]
[343291363,1732546254552,-500.0,0.000438,7]
[343291364,1732546254562,-10000.0,0.000439,120]
[343291365,1732546254571,-3427.34577713,0.000439,120]
[343291366,1732546254582,-6572.65422287,0.000439,120]
[343291367,1732546254591,-8911.74087527,0.000439,2]
[343291368,1732546254600,-3821.60490186,0.000439,16]
[343291369,1732546254612,-878.39509814,0.000439,16]
[343291370,1732546254622,-744.32,0.00043972,120]
[343291371,1732546254631,-500.0,0.00043999,7]
[343291372,1732546254640,-100000.0,0.00044,4]
[343291373,1732546254649,-940.7996888,0.00044,120]
[343291374,1732546254659,-685.10987133,0.00044,2]
[343291375,1732546254668,-450.0,0.00044,120]
[343291376,1732546254677,-28537.81101842,0.00044,2]
[343291377,1732546254687,-20000.0,0.00044,120]
[343291378,1732546254696,-318.12,0.00044,69]
[343291379,1732546254705,-1005.52,0.00044,69]
[343291380,1732546254714,-643.9,0.00044018,60]
[343291381,1732546254723,-970.35,0.00044065,30]
[343291382,1732546254732,-1781.71208439,0.00044086,15]
[343291383,1732546254741,-627.48,0.000441,2]
[343291384,1732546254750,-500.0,0.00044136,7]
[343291385,1732546254759,-161.706047,0.00044161,30]
[343291386,1732546254769,-150.55,0.00044257,2]
[343291387,1732546254782,-264.15,0.0004426,120]
[343291388,1732546254791,-500.0,0.00044273,7]
[343291389,1732546254950,-152.41415329,0.00044273,6]
[343291390,1732546254960,-156.86357056,0.0004435,19]
[343291391,1732546254970,-744.32,0.00044383,120]
[343291392,1732546254980,-500.0,0.0004441,7]
[343291393,1732546254990,-500.0,0.00044427,120]
[343291394,1732546254999,-500.0,0.00044427,120]
[343291395,1732546255008,-1600.0,0.0004444,2]
[343291396,1732546255018,-2000.0,0.0004444,2]
[343291397,1732546255027,-168.85060596,0.00044493,60]
[343291398,1732546255037,-15439.89420781,0.000445,120]
[343291399,1732546255047,-500.0,0.00044547,7]
[343291400,1732546255056,-548.86184295,0.00044605,16]
[343291401,1732546255066,-161.706047,0.00044669,30]
[343291402,1732546255075,-160.140767,0.00044669,30]
[343291403,1732546255085,-161.706047,0.0004467,2]
[343291404,1732546255094,-12664.85339478,0.0004467,3]
[343291405,1732546255104,-500.0,0.00044684,7]
[343291406,1732546255115,-317.85059509,0.00044688,2]
[343291407,1732546255124,-55327.39965575,0.000447,2]
[343291408,1732546255191,-279.918,0.00037665,2]
[343291409,1732546255201,-14210.382,0.000447,2]
[343291410,1732546255212,-13625.74671937,0.000447,2]
[343291411,1732546255222,-744.32,0.00044794,120]
[343291412,1732546255236,-500.0,0.00044821,7]
[343291413,1732546255247,-1953.68810227,0.000449,120]
[343291414,1732546255259,-9680.0,0.000449,120]
[343291415,1732546255405,-5885.05114684,0.000449,120]
[343291416,1732546255422,-1636.39330001,0.000449,120]
[343291417,1732546255434,-7651.42648441,0.000449,120]
[343291418,1732546255467,-167.5230859,0.000449,120]
[343291419,1732546255480,-28772.00496545,0.000449,120]
[343291420,1732546255489,-500.0,0.00044942,120]
[343291421,1732546255499,-2000.0,0.00044942,120]
[343291422,1732546255509,-500.0,0.00044942,120]
[343291423,1732546255519,-200.0,0.00044942,120]
[343291424,1732546255529,-1005.52,0.00044945,77]
[343291425,1732546255539,-500.0,0.00044958,7]
[343291426,1732546255549,-500.0,0.00044975,120]
[343291427,1732546255559,-24176.87503455,0.00045,5]
[343291428,1732546255571,-1289.60893863,0.00045,5]
[343291431,1732546335435,151.0,0.0003,120]
[343291441,1732546503263,800.0,0.00026986,120]
[343291443,1732546581017,151.0,0.0003,120]
[343291444,1732546581606,151.0,0.00032411,120]
[343291445,1732546582795,276.47,0.00018293,2]
[343291446,1732546616941,151.0,0.0003,120]
[343291447,1732546623125,200.0,0.00032383,30]
[343291448,1732546627752,-176.82,0.00030685,2]
[343291449,1732546627776,-250.0,0.00031,2]
[343291450,1732546627797,-2508.7266465,0.00032284,2]
[343291451,1732546627818,-400.0,0.00032383,2]
[343291452,1732546627839,-50000.0,0.00032384,2]
[343291453,1732546627861,-223.22025,0.00032484,2]
[343291454,1732546627886,-300.0,0.00033,2]
[343291455,1732546627911,-8664.58405217,0.00033331,2]
[343291456,1732546627934,-550.0,0.00034816,2]
[343291457,1732546627955,-151.0,0.00034822,120]
[343291458,1732546627980,-350.0,0.00035,2]
[343291459,1732546628002,-151.0,0.00035452,120]
[343291460,1732546628025,-176.82,0.0003628,2]
[343291461,1732546628047,-150.0,0.00036789,2]
[343291462,1732546628068,-400.0,0.00037,2]
[343291463,1732546628089,-151.0,0.00037233,120]
[343291464,1732546628109,-194.5561,0.00037555,7]
[343291465,1732546628129,-1000.0,0.00037556,2]
[343291466,1732546628150,-37966.9985,0.00037556,2]
[343291467,1732546628177,-165.68796353,0.00037754,120]
[343291468,1732546628199,-10091.0902,0.00037755,2]
[343291469,1732546628221,-3046.3818,0.00037756,2]
[343291470,1732546628244,-217.4583,0.00037756,2]
[343291471,1732546628267,-309.8175,0.00037756,2]
[343291472,1732546628291,-673.987,0.00037756,2]
[343291473,1732546628313,-151.0,0.00037856,7]
[343291474,1732546628334,-151.0,0.00037856,7]
[343291475,1732546628357,-9999.99,0.00037873,2]
[343291476,1732546628380,-773.66933961,0.00037908,2]
[343291477,1732546628403,-773.6693396,0.00037908,2]
[343291478,1732546628428,-2930.69,0.00038124,2]
[343291479,1732546628450,-2751.0,0.0003876,120]
[343291480,1732546628472,-153.6,0.00038927,2]
[343291481,1732546628495,-1728.43,0.00038979,2]
[343291482,1732546628517,-151.0,0.00039,14]
[343291483,1732546628539,-450.0,0.00039,2]
[343291484,1732546628562,-21192.37,0.00039023,2]
[343291485,1732546628585,-250.0,0.00039091,2]
[343291486,1732546628608,-258.32,0.0003911,2]
[343291487,1732546628631,-500.0,0.0003912,2]
[343291488,1732546628654,-168.37,0.0003915,2]
[343291489,1732546628680,-300.0,0.00039155,2]
[343291490,1732546628702,-151.0,0.00039644,120]
[343291491,1732546628724,-544.4653,0.00039888,7]
[343291492,1732546628747,-200.0,0.000399,14]
[343291493,1732546628768,-500.0,0.0004,30]
[343291494,1732546628791,-500.0,0.0004,30]
[343291495,1732546628813,-500.0,0.0004,30]
[343291496,1732546628835,-500.0,0.0004,30]
[343291497,1732546628857,-501.3149393,0.0004,30]
[343291498,1732546628883,-151.0,0.0004,14]
[343291499,1732546628910,-151.0,0.0004,14]
[343291500,1732546628935,-4999.99,0.0004,120]
[343291501,1732546628956,-701.27,0.0004,120]
[343291502,1732546628979,-3753.27,0.0004,120]
[343291503,1732546629001,-1600.0,0.0004,2]
[343291504,1732546629023,-727.0,0.000403,30]
[343291505,1732546629045,-590.0,0.000403,30]
[343291506,1732546629068,-150.0,0.00040468,2]
[343291507,1732546629091,-151.0,0.00040904,120]
[343291508,1732546629112,-500.21,0.00040997,2]
[343291509,1732546629134,-500.0,0.00041,2]
[343291510,1732546629161,-1735.85394389,0.00041042,15]
[343291511,1732546629185,-159.23756615,0.00041067,2]
[343291512,1732546629206,-500.0,0.00041095,120]
[343291513,1732546629232,-359.64,0.00041096,2]
[343291514,1732546629253,-248.0,0.00041096,2]
[343291515,1732546629275,-74204.421,0.000411,2]
[343291516,1732546629297,-250.0,0.00041142,2]
[343291517,1732546629318,-1725.03,0.00041156,2]
[343291518,1732546629339,-200.0,0.00041195,2]
[343291519,1732546629360,-2365.78,0.00041222,2]
[343291520,1732546629382,-255.3,0.0004137,2]
[343291521,1732546629403,-159.23117549,0.00041467,2]
[343291522,1732546629429,-159.25433002,0.00041467,2]
[343291523,1732546629451,-500.0,0.00041467,2]
[343291524,1732546629473,-1600.0,0.0004148,2]
[343291525,1732546629495,-500.0,0.00041506,120]
[343291526,1732546629517,-152.0,0.00041743,3]
[343291527,1732546629540,-176.82,0.00041875,2]
[343291528,1732546629828,-500.0,0.000419,15]
[343291529,1732546629851,-500.0,0.00041917,120]
[343291530,1732546629874,-1735.85394386,0.00041961,15]
[343291531,1732546629897,-153.121459,0.00042011,120]
[343291532,1732546629926,-1000.0,0.00042015,2]
[343291533,1732546629947,-151.0,0.00042055,120]
[343291534,1732546629969,-500.0,0.00042328,120]
[343291535,1732546629992,-320.1141103,0.00042489,31]
[343291536,1732546630014,-155.06347641,0.0004249,28]
[343291537,1732546630034,-316.26366704,0.0004249,2]
[343291538,1732546630055,-218.47173187,0.0004249,18]
[343291539,1732546630075,-7835.0826,0.0004249,2]
[343291540,1732546630096,-248131.7361,0.0004249,2]
[343291541,1732546630116,-49924.6681,0.0004249,2]
[343291542,1732546630137,-1733.81633235,0.000425,120]
[343291543,1732546630168,-30000.0,0.00042588,14]
[343291544,1732546630191,-4834.64646299,0.00042588,14]
[343291545,1732546630212,-1000.0,0.00042589,2]
[343291546,1732546630234,-1071.6401,0.0004259,2]
[343291547,1732546630255,-6752.0417,0.0004259,2]
[343291548,1732546630277,-1263.4135,0.0004259,2]
[343291549,1732546630298,-32328.72146992,0.0004259,2]
[343291552,1732546839186,150.0,0.00027,120]
[343291553,1732546839544,207.34004,0.000323,120]
[343291555,1732546938851,151.0,0.0003,120]
[343291556,1732546939420,151.0,0.00032849,120]
[343291558,1732547119811,1208.0,0.000165,2]
[343291559,1732547120465,1088.0,0.000165,2]
[343291562,1732547297460,151.0,0.0003,120]
[343291566,1732547356248,150.0,0.00016712,2]
[343291589,1732547431575,-252.3677396,0.00029253,2]
[343291591,1732547431585,-113.1422604,0.00029699,2]
[343291592,1732547431599,-10101.1406606,0.00029699,2]
[343291593,1732547431608,-8264.29906568,0.00029749,2]
[343291594,1732547431618,-686.56027372,0.0003,7]
[343291596,1732547431657,-312.2472192,0.0003,7]
[343291597,1732547431667,-186.94,0.00030452,2]
[343291598,1732547431678,-195.2127808,0.00030485,2]
[343291599,1732547431691,-49804.7872192,0.00030485,2]
[343291600,1732547431701,-337.30736934,0.00030485,2]
[343291601,1732547431710,-500.0,0.00030585,2]
[343291602,1732547431720,-500.0,0.00030585,2]
[343291603,1732547431729,-500.0,0.00030585,2]
[343291604,1732547431739,-500.0,0.00030585,2]
[343291605,1732547431750,-500.0,0.00030585,2]
[343291606,1732547431760,-303.83845208,0.00030585,2]
[343291607,1732547431770,-333.7484,0.00030585,2]
[343291608,1732547431780,-290.33,0.000306,2]
[343291609,1732547431789,-499.99,0.000306,2]
[343291610,1732547431799,-1699.15,0.000306,2]
[343291611,1732547431809,-23557.32,0.000306,10]
[343291612,1732547431818,-1439.99,0.000306,2]
[343291613,1732547431828,-159.26082865,0.000306,2]
[343291614,1732547431838,-159.28200816,0.000306,2]
[343291615,1732547431847,-153.47,0.00030685,2]
[343291616,1732547431856,-999.99,0.00030685,2]
[343291617,1732547431865,-9999.99,0.00030685,2]
[343291618,1732547431874,-9999.99,0.00030685,2]
[343291619,1732547431883,-7246.01,0.00030685,2]
[343291620,1732547431898,-271.47,0.00030685,2]
[343291621,1732547431907,-150.99,0.00030685,2]
[343291622,1732547431916,-499.15,0.00030685,2]
[343291623,1732547431927,-9999.99,0.00030685,2]
[343291624,1732547431936,-9999.99,0.00030685,2]
[343291625,1732547431945,-212.07,0.00030685,2]
[343291626,1732547431955,-385.86345803,0.000307,5]
[343291627,1732547431964,-161.6745,0.00031767,2]
[343291628,1732547431974,-183.669,0.0003192,2]
[343291629,1732547431983,-320.49125,0.00032,2]
[343291630,1732547431992,-150.43374611,0.00032358,2]
[343291631,1732547432001,-151.0,0.00033014,120]
[343291632,1732547432010,-831.78,0.00034233,3]
[343291633,1732547432019,-8250.8,0.00034243,2]
[343291634,1732547432028,-151.0,0.0003538,2]
[343291635,1732547432037,-4183.21,0.00035395,2]
[343291636,1732547432046,-250.0,0.00035798,2]
[343291637,1732547432056,-351.79,0.00035818,2]
[343291638,1732547432065,-200.0,0.00035818,2]
[343291639,1732547432074,-6054.27,0.00035826,2]
[343291640,1732547432086,-1075.61,0.00035921,2]
[343291641,1732547432095,-150.0,0.00035968,2]
[343291642,1732547432104,-151.0,0.00036027,120]
[343291643,1732547432113,-2721.25,0.0003618,2]
[343291644,1732547432124,-2000.0,0.00036607,2]
[343291645,1732547432133,-153.47,0.00036938,2]
[343291646,1732547432152,-1121.87,0.00037067,2]
[343291647,1732547432162,-14925.39,0.00037067,30]
[343291648,1732547432172,-174.95883863,0.000372,103]
[343291649,1732547432182,-1029.9,0.00037444,120]
[343291650,1732547432191,-162.16,0.00037714,2]
[343291651,1732547432201,-250.0,0.00037739,2]
[343291652,1732547432210,-500.0,0.00037811,2]
[343291653,1732547432220,-633.57,0.00037948,2]
[343291654,1732547432229,-3971.7,0.00037958,2]
[343291655,1732547432238,-500.0,0.0003799,2]
[343291656,1732547432247,-633.57,0.00038616,2]
[343291657,1732547432258,-633.57,0.00038616,2]
[343291658,1732547432267,-633.57,0.00038616,2]
[343291659,1732547432276,-6953.31943265,0.00038626,2]
[343291660,1732547432288,-1921.335,0.00038626,2]
[343291661,1732547432300,-61430.90556735,0.00038626,2]
[343291663,1732547432308,-500.0,0.00038733,2]
[343291665,1732547432318,-440.94098533,0.00038733,5]
[343291667,1732547432327,-3303.56446006,0.00038823,2]
[343291669,1732547432336,-8588.4885,0.00038923,2]
[343291670,1732547432345,-221.55,0.00039,14]
[343291673,1732547432355,-151.0,0.00039,14]
[343291675,1732547432364,-151.0,0.00039041,120]
[343291676,1732547432374,-1722.13,0.00039164,2]
[343291678,1732547432383,-633.57,0.0003921,2]
[343291680,1732547432399,-5000.00564627,0.0003922,2]
[343291682,1732547432408,-1000.0,0.00039281,2]
[343291684,1732547432418,-4920.82288955,0.0003951,2]
[343291686,1732547432427,-200.0,0.00039528,2]
[343291689,1732547432436,-151.0,0.0003955,14]
[343291692,1732547432445,-3713.17,0.00039598,2]
[343291694,1732547432455,-320.49125,0.00039704,2]
[343291696,1732547432464,-371.97,0.00039792,2]
[343291698,1732547432473,-851.45,0.00039857,2]
[343291700,1732547432483,-618.4819,0.00039888,7]
[343291702,1732547432492,-1728.67260571,0.000399,2]
[343291704,1732547432501,-339.4,0.0003999,10]
[343291706,1732547432511,-373.05,0.0003999,10]
[343291708,1732547432519,-310.88,0.0003999,10]
[343291710,1732547432529,-633.57,0.0003999,2]
[343291712,1732547432539,-633.57,0.0003999,2]
[343291714,1732547432548,-633.57,0.0003999,2]
[343291716,1732547432558,-3303.56446001,0.00039995,15]
[343291718,1732547432568,-629.44431585,0.0004,30]
[343291720,1732547432577,-502.90529546,0.0004,30]
[343291722,1732547432587,-500.0,0.0004,30]
[343291723,1732547432597,-500.0,0.0004,30]
[343291724,1732547432606,-343.14539882,0.0004,30]
[343291725,1732547432616,-705.8531007,0.0004,30]
[343291726,1732547432626,-500.0,0.0004,30]
[343291727,1732547432641,-5000.0,0.0004,120]
[343291728,1732547432652,-231.0,0.0004,120]
[343291730,1732547432662,-1600.0,0.0004,2]
[343291732,1732547432673,-3809.05,0.0004,120]
[343291734,1732547432683,-1461.81,0.0004,120]
[343291736,1732547432693,-3749.99,0.0004,120]
[343291738,1732547432705,-5000.0,0.0004,120]
[343291740,1732547432715,-28630.94081855,0.0004,2]
[343291742,1732547432726,-1749.41,0.0004,120]
[343291744,1732547432736,-386.42,0.000401,120]
[343291746,1732547432746,-493.73,0.00040111,2]
[343291748,1732547432755,-1432.90379701,0.00040283,2]
[343291750,1732547432764,-1000.0,0.00040361,2]